[Event "*** MasterClass Titled Tuesday Blitz"]
[Site "Chess.com"]
[Date "2017.12.05"]
[Round "3"]
[White "hhbcd_grob_bes"]
[Black "MateusViageiro"]
[Result "0-1"]
[WhiteElo "1427"]
[BlackElo "2183"]
[TimeControl "180+2"]
[EndTime "14:46:26 PST"]
[Termination "MateusViageiro won by resignation"]

1. e4 {[%clk 0:03:01.9]} 1... c5 {[%clk 0:02:59.2]} 2. Nf3 {[%clk 0:03:01.1]}
2... d6 {[%clk 0:03:00]} 3. d4 {[%clk 0:03:02.7]} 3... cxd4 {[%clk 0:02:59.6]}
4. Nxd4 {[%clk 0:03:04.3]} 4... Nf6 {[%clk 0:02:53.4]} 5. Nc3 {[%clk 0:03:05.2]}
5... a6 {[%clk 0:02:54.4]} 6. Rg1 {[%clk 0:03:06.6]} 6... e5 {[%clk 0:02:53.7]}
7. Nb3 {[%clk 0:03:05.5]} 7... Be6 {[%clk 0:02:54.4]} 8. g4 {[%clk 0:03:05.9]}
8... d5 {[%clk 0:02:55]} 9. exd5 {[%clk 0:03:06.2]} 9... Nxd5 {[%clk 0:02:55.3]}
10. Nxd5 {[%clk 0:03:04.4]} 10... Qxd5 {[%clk 0:02:54.7]} 11. Be3 {[%clk
0:02:51.4]} 11... Nc6 {[%clk 0:02:54.2]} 12. Bg2 {[%clk 0:02:52.1]} 12... Qxd1+
{[%clk 0:02:49.3]} 13. Rxd1 {[%clk 0:02:53.5]} 13... Rc8 {[%clk 0:02:49.8]} 14.
Nc5 {[%clk 0:02:50.6]} 14... Bxg4 {[%clk 0:02:48.1]} 15. f3 {[%clk 0:02:44.4]}
15... Bxc5 {[%clk 0:02:47.2]} 16. Bxc5 {[%clk 0:02:42.7]} 16... Bf5 {[%clk
0:02:47.8]} 17. Bd6 {[%clk 0:02:27.6]} 17... Bxc2 {[%clk 0:02:45.7]} 18. Rd2
{[%clk 0:02:29]} 18... Bf5 {[%clk 0:02:46.1]} 19. Kf2 {[%clk 0:02:26]} 19... f6
{[%clk 0:02:46.1]} 20. Rgd1 {[%clk 0:02:23.7]} 20... Kf7 {[%clk 0:02:43.9]} 21.
f4 {[%clk 0:02:21.9]} 21... exf4 {[%clk 0:02:40.5]} 22. Bxf4 {[%clk 0:02:21.8]}
22... Rhd8 {[%clk 0:02:31.2]} 23. Rxd8 {[%clk 0:01:44.5]} 23... Rxd8 {[%clk
0:02:30.3]} 24. Rxd8 {[%clk 0:01:41.9]} 24... Nxd8 {[%clk 0:02:30.3]} 25. Bxb7
{[%clk 0:01:43.4]} 25... Nxb7 {[%clk 0:02:30.9]} 26. h4 {[%clk 0:01:40.9]} 26...
Ke6 {[%clk 0:02:30.5]} 27. b3 {[%clk 0:01:38.6]} 27... Kd5 {[%clk 0:02:31.3]}
28. a3 {[%clk 0:01:37.9]} 28... Nc5 {[%clk 0:02:30.7]} 29. b4 {[%clk 0:01:39]}
29... Nd3+ {[%clk 0:02:31.4]} 30. Ke3 {[%clk 0:01:40.6]} 30... Nxf4 {[%clk
0:02:32.4]} 31. Kxf4 {[%clk 0:01:42.1]} 31... Bd7 {[%clk 0:02:33.5]} 32. h5
{[%clk 0:01:41]} 32... g6 {[%clk 0:02:34]} 33. hxg6 {[%clk 0:01:40.7]} 33...
hxg6 {[%clk 0:02:34.6]} 34. Kg3 {[%clk 0:01:42.4]} 34... g5 {[%clk 0:02:34.8]}
35. Kf3 {[%clk 0:01:42.7]} 35... f5 {[%clk 0:02:35.2]} 36. Kg2 {[%clk
0:01:43.7]} 36... Kc4 {[%clk 0:02:36.1]} 0-1

[Event "*** MasterClass Titled Tuesday Blitz"]
[Site "Chess.com"]
[Date "2017.12.05"]
[Round "3"]
[White "ChessChronicles123"]
[Black "Koksik_13"]
[Result "0-1"]
[WhiteElo "1916"]
[BlackElo "2198"]
[TimeControl "180+2"]
[EndTime "14:47:01 PST"]
[Termination "Koksik_13 won by resignation"]

1. Nf3 {[%clk 0:03:01.9]} 1... d5 {[%clk 0:02:47.8]} 2. g3 {[%clk 0:03:03.8]}
2... c6 {[%clk 0:02:49.1]} 3. d4 {[%clk 0:03:04.1]} 3... Nf6 {[%clk 0:02:50.2]}
4. Bg2 {[%clk 0:03:06]} 4... g6 {[%clk 0:02:51.4]} 5. O-O {[%clk 0:03:06]} 5...
Bg7 {[%clk 0:02:52.9]} 6. c4 {[%clk 0:03:04.9]} 6... O-O {[%clk 0:02:54.1]} 7.
cxd5 {[%clk 0:03:05.3]} 7... cxd5 {[%clk 0:02:55.4]} 8. Nc3 {[%clk 0:03:07.2]}
8... Nc6 {[%clk 0:02:56.9]} 9. Bf4 {[%clk 0:03:07.2]} 9... Bf5 {[%clk
0:02:57.8]} 10. Rc1 {[%clk 0:03:07.3]} 10... Ne4 {[%clk 0:02:59]} 11. a3 {[%clk
0:03:07.5]} 11... Nxc3 {[%clk 0:02:59.6]} 12. Rxc3 {[%clk 0:03:06.2]} 12... Be4
{[%clk 0:03:00.7]} 13. Be3 {[%clk 0:03:01.1]} 13... Qb6 {[%clk 0:03:00.5]} 14.
Qd2 {[%clk 0:03:00.8]} 14... e6 {[%clk 0:02:58.9]} 15. Rfc1 {[%clk 0:03:01]}
15... Bxf3 {[%clk 0:02:59]} 16. Bxf3 {[%clk 0:02:58]} 16... Bxd4 {[%clk
0:03:00.1]} 17. Rxc6 {[%clk 0:02:52.3]} 17... Bxe3 {[%clk 0:03:01.2]} 18. fxe3
{[%clk 0:02:03]} 18... bxc6 {[%clk 0:02:46.2]} 19. b4 {[%clk 0:02:03.9]} 19...
a5 {[%clk 0:02:46.3]} 20. Kg2 {[%clk 0:01:57.4]} 20... axb4 {[%clk 0:02:47.1]}
21. axb4 {[%clk 0:01:57.7]} 21... Rfb8 {[%clk 0:02:48.6]} 22. e4 {[%clk
0:01:40]} 22... Qxb4 {[%clk 0:02:46.2]} 23. Qf4 {[%clk 0:01:37.4]} 23... dxe4
{[%clk 0:02:42.9]} 24. Bxe4 {[%clk 0:01:25.9]} 24... f5 {[%clk 0:02:42.8]} 25.
Bxf5 {[%clk 0:01:01.5]} 25... exf5 {[%clk 0:02:36.2]} 26. Qe5 {[%clk 0:00:31.9]}
26... Qe4+ {[%clk 0:02:31.7]} 0-1

[Event "*** MasterClass Titled Tuesday Blitz"]
[Site "Chess.com"]
[Date "2017.12.05"]
[Round "3"]
[White "visa"]
[Black "aa175"]
[Result "0-1"]
[WhiteElo "2188"]
[BlackElo "1873"]
[TimeControl "180+2"]
[EndTime "14:47:32 PST"]
[Termination "aa175 won by resignation"]

1. e4 {[%clk 0:02:57.1]} 1... e5 {[%clk 0:03:00.5]} 2. d4 {[%clk 0:02:51.1]}
2... exd4 {[%clk 0:02:59.8]} 3. Qxd4 {[%clk 0:02:52.2]} 3... Nc6 {[%clk
0:03:01.7]} 4. Qe3 {[%clk 0:02:53.1]} 4... Be7 {[%clk 0:03:02.2]} 5. Nc3 {[%clk
0:02:53.6]} 5... d6 {[%clk 0:03:03.6]} 6. Bd2 {[%clk 0:02:55]} 6... Bf5 {[%clk
0:03:04.1]} 7. exf5 {[%clk 0:02:53.5]} 7... Nf6 {[%clk 0:03:04.7]} 8. O-O-O
{[%clk 0:02:53.1]} 8... O-O {[%clk 0:03:06.6]} 9. h3 {[%clk 0:02:52.8]} 9... Re8
{[%clk 0:03:02.6]} 10. g4 {[%clk 0:02:53]} 10... h6 {[%clk 0:02:59.5]} 11. Qg3
{[%clk 0:02:51.6]} 11... d5 {[%clk 0:02:39.1]} 12. h4 {[%clk 0:02:41.1]} 12...
Bd6 {[%clk 0:02:36.1]} 13. Bf4 {[%clk 0:02:38.2]} 13... Ne5 {[%clk 0:02:15.1]}
14. g5 {[%clk 0:02:33.6]} 14... Nh5 {[%clk 0:02:13.7]} 15. Qh2 {[%clk
0:01:56.4]} 15... Nxf4 {[%clk 0:02:12.7]} 16. Nb5 {[%clk 0:01:57.1]} 16... Ng4
{[%clk 0:01:45.9]} 17. Qg3 {[%clk 0:01:46.9]} 17... Ne2+ {[%clk 0:01:45.4]} 18.
Nxe2 {[%clk 0:01:40.9]} 18... Bxg3 {[%clk 0:01:47.3]} 19. Nxg3 {[%clk
0:01:41.8]} 19... Nxf2 {[%clk 0:01:47.4]} 20. Bd3 {[%clk 0:01:35.4]} 20... Nxd1
{[%clk 0:01:46.2]} 21. Rxd1 {[%clk 0:01:34.9]} 21... hxg5 {[%clk 0:01:46.1]} 22.
h5 {[%clk 0:01:28]} 22... c6 {[%clk 0:01:45.1]} 23. Nd4 {[%clk 0:01:04]} 23...
Qc7 {[%clk 0:01:42.9]} 24. Rg1 {[%clk 0:00:40.4]} 24... Qf4+ {[%clk 0:01:41.8]}
25. Kb1 {[%clk 0:00:40.3]} 25... Qxd4 {[%clk 0:01:43.7]} 26. h6 {[%clk
0:00:34.5]} 26... Qxg1+ {[%clk 0:01:44.5]} 0-1

[Event "*** MasterClass Titled Tuesday Blitz"]
[Site "Chess.com"]
[Date "2017.12.05"]
[Round "3"]
[White "robbykevlishvili"]
[Black "josiwales"]
[Result "1-0"]
[WhiteElo "2396"]
[BlackElo "2352"]
[TimeControl "180+2"]
[EndTime "14:47:44 PST"]
[Termination "robbykevlishvili won by resignation"]

1. e4 {[%clk 0:03:01.3]} 1... c5 {[%clk 0:02:59.9]} 2. Nf3 {[%clk 0:03:02.2]}
2... Nc6 {[%clk 0:03:01.2]} 3. d4 {[%clk 0:03:02.4]} 3... cxd4 {[%clk
0:03:03.1]} 4. Nxd4 {[%clk 0:03:03.9]} 4... Nf6 {[%clk 0:03:03.1]} 5. Nc3 {[%clk
0:03:04.9]} 5... e5 {[%clk 0:03:03.5]} 6. Ndb5 {[%clk 0:03:05.7]} 6... d6 {[%clk
0:03:05.2]} 7. Bg5 {[%clk 0:03:06.5]} 7... a6 {[%clk 0:03:06.8]} 8. Na3 {[%clk
0:03:07.7]} 8... b5 {[%clk 0:03:08.4]} 9. Nd5 {[%clk 0:03:09]} 9... Be7 {[%clk
0:03:10]} 10. Bxf6 {[%clk 0:03:10.5]} 10... Bxf6 {[%clk 0:03:11.9]} 11. c4
{[%clk 0:03:11.6]} 11... Nd4 {[%clk 0:03:13.1]} 12. cxb5 {[%clk 0:03:06.7]}
12... Be6 {[%clk 0:03:12.9]} 13. Bc4 {[%clk 0:03:00.8]} 13... axb5 {[%clk
0:02:52.5]} 14. Bxb5+ {[%clk 0:03:00.1]} 14... Kf8 {[%clk 0:02:45.8]} 15. Bc4
{[%clk 0:03:00.4]} 15... Rb8 {[%clk 0:02:18.8]} 16. b4 {[%clk 0:02:57.4]} 16...
Bxd5 {[%clk 0:02:17.1]} 17. Bxd5 {[%clk 0:02:58.4]} 17... Rxb4 {[%clk
0:02:18.6]} 18. O-O {[%clk 0:03:00]} 18... g6 {[%clk 0:02:18.2]} 19. Nc4 {[%clk
0:02:57.9]} 19... Kg7 {[%clk 0:02:18.6]} 20. a3 {[%clk 0:02:54.9]} 20... Rb8
{[%clk 0:02:15.6]} 21. a4 {[%clk 0:02:56]} 21... Nb3 {[%clk 0:02:01.9]} 22. Ra3
{[%clk 0:02:56.2]} 22... Nc5 {[%clk 0:02:01.8]} 23. a5 {[%clk 0:02:57]} 23...
Qd7 {[%clk 0:01:58.1]} 24. a6 {[%clk 0:02:53.5]} 24... Qa7 {[%clk 0:01:48.7]}
25. Nxd6 {[%clk 0:02:47]} 25... Rhd8 {[%clk 0:01:48.4]} 26. Nxf7 {[%clk
0:02:36.8]} 26... Nxe4 {[%clk 0:01:43.2]} 27. Nxd8 {[%clk 0:02:34.4]} 27... Rxd8
{[%clk 0:01:42.7]} 28. Bxe4 {[%clk 0:02:30.7]} 28... Rxd1 {[%clk 0:01:41.2]} 29.
Rxd1 {[%clk 0:02:29.6]} 29... Be7 {[%clk 0:01:36.5]} 30. Ra2 {[%clk 0:02:30.6]}
30... Kf6 {[%clk 0:01:34.1]} 31. g3 {[%clk 0:02:31.5]} 31... h5 {[%clk
0:01:33.2]} 32. h4 {[%clk 0:02:30.9]} 32... Bc5 {[%clk 0:01:30.8]} 33. Kg2
{[%clk 0:02:30.6]} 33... g5 {[%clk 0:01:31.8]} 34. hxg5+ {[%clk 0:02:30.5]}
34... Kxg5 {[%clk 0:01:33.7]} 35. Rd5 {[%clk 0:02:30.2]} 35... Bd4 {[%clk
0:01:34]} 36. Rb5 {[%clk 0:02:30.5]} 36... h4 {[%clk 0:01:31.8]} 37. Rb7 {[%clk
0:02:23]} 37... Qc5 {[%clk 0:01:32.3]} 38. a7 {[%clk 0:02:18.5]} 38... h3+
{[%clk 0:01:32.7]} 39. Kxh3 {[%clk 0:02:16]} 39... Qc1 {[%clk 0:01:33.2]} 40.
a8=Q {[%clk 0:02:12.2]} 40... Qf1+ {[%clk 0:01:30.4]} 41. Bg2 {[%clk 0:02:13]}
41... Qd3 {[%clk 0:01:26.4]} 42. Rg7+ {[%clk 0:02:13]} 42... Kf6 {[%clk
0:01:23]} 43. Rg6+ {[%clk 0:02:12.2]} 43... Kf5 {[%clk 0:01:14.7]} 44. Be4+
{[%clk 0:02:11.8]} 44... Qxe4 {[%clk 0:01:16.1]} 45. g4+ {[%clk 0:02:11.5]}
45... Kf4 {[%clk 0:01:15.1]} 46. Rf6+ {[%clk 0:02:09.2]} 1-0

[Event "*** MasterClass Titled Tuesday Blitz"]
[Site "Chess.com"]
[Date "2017.12.05"]
[Round "3"]
[White "JSPrepz"]
[Black "Khamrakulov_Djurabek"]
[Result "0-1"]
[WhiteElo "2550"]
[BlackElo "2674"]
[TimeControl "180+2"]
[EndTime "14:47:52 PST"]
[Termination "Khamrakulov_Djurabek won by resignation"]

1. e4 {[%clk 0:03:01.9]} 1... c6 {[%clk 0:03:00.7]} 2. d4 {[%clk 0:03:02]} 2...
d5 {[%clk 0:03:02.3]} 3. Nc3 {[%clk 0:03:03.3]} 3... dxe4 {[%clk 0:03:03.1]} 4.
Nxe4 {[%clk 0:03:05.2]} 4... Bf5 {[%clk 0:03:04.3]} 5. Ng3 {[%clk 0:03:06.4]}
5... Bg6 {[%clk 0:03:05.5]} 6. h4 {[%clk 0:03:06.5]} 6... h6 {[%clk 0:03:06.4]}
7. Nh3 {[%clk 0:03:06.1]} 7... e6 {[%clk 0:03:06.5]} 8. Nf4 {[%clk 0:03:07.2]}
8... Bh7 {[%clk 0:03:07.4]} 9. Bc4 {[%clk 0:03:06.8]} 9... Nd7 {[%clk
0:03:08.4]} 10. O-O {[%clk 0:03:05.9]} 10... Qxh4 {[%clk 0:03:08.7]} 11. Bxe6
{[%clk 0:02:49.7]} 11... fxe6 {[%clk 0:03:09.5]} 12. Nxe6 {[%clk 0:02:51.6]}
12... Kf7 {[%clk 0:03:10.2]} 13. d5 {[%clk 0:02:22.6]} 13... Ngf6 {[%clk
0:03:07.9]} 14. dxc6 {[%clk 0:02:17.4]} 14... bxc6 {[%clk 0:03:07.5]} 15. Re1
{[%clk 0:02:18.8]} 15... Re8 {[%clk 0:03:04.9]} 16. Nc7 {[%clk 0:02:10.4]} 16...
Bxc2 {[%clk 0:02:53.7]} 17. Qd2 {[%clk 0:02:08.4]} 17... Bb4 {[%clk 0:02:53.5]}
18. Rxe8 {[%clk 0:02:01]} 18... Bxd2 {[%clk 0:02:50.4]} 19. Rxh8 {[%clk
0:02:02.1]} 19... Qg5 {[%clk 0:02:37.5]} 20. Bxd2 {[%clk 0:01:59.2]} 20... Qxd2
{[%clk 0:02:36.1]} 21. Nf1 {[%clk 0:01:55.7]} 21... Qf4 {[%clk 0:02:34.3]} 22.
Rc8 {[%clk 0:01:51]} 22... Nb6 {[%clk 0:02:30.2]} 23. Rf8+ {[%clk 0:01:52.1]}
23... Kg6 {[%clk 0:02:25.5]} 24. Ne6 {[%clk 0:01:53.2]} 24... Qd6 {[%clk
0:02:25.6]} 25. Re1 {[%clk 0:01:52.1]} 25... Bf5 {[%clk 0:02:21.7]} 26. Rd8
{[%clk 0:01:52.4]} 26... Nbd7 {[%clk 0:02:15.9]} 27. Nf8+ {[%clk 0:01:42.1]}
27... Kf7 {[%clk 0:02:16.3]} 28. Nxd7 {[%clk 0:01:39]} 28... Bxd7 {[%clk
0:02:16.4]} 29. Ne3 {[%clk 0:01:32.1]} 29... Qc7 {[%clk 0:02:09.8]} 30. Ra8
{[%clk 0:01:32.1]} 30... Be6 {[%clk 0:02:08.1]} 31. Rd1 {[%clk 0:01:30.7]} 31...
Qb7 {[%clk 0:02:01.4]} 32. Rdd8 {[%clk 0:01:28.1]} 32... Nd7 {[%clk 0:01:36.2]}
33. b3 {[%clk 0:01:27.8]} 33... Qa6 {[%clk 0:01:29.5]} 34. Nc4 {[%clk
0:01:27.2]} 34... Qxa2 {[%clk 0:01:25.6]} 35. Nd6+ {[%clk 0:01:23.2]} 35... Ke7
{[%clk 0:01:24.1]} 36. Nc8+ {[%clk 0:01:24]} 36... Kxd8 {[%clk 0:01:23.2]} 0-1

[Event "*** MasterClass Titled Tuesday Blitz"]
[Site "Chess.com"]
[Date "2017.12.05"]
[Round "3"]
[White "ppchess2017"]
[Black "Colombiano07"]
[Result "1-0"]
[WhiteElo "1791"]
[BlackElo "2186"]
[TimeControl "180+2"]
[EndTime "14:48:05 PST"]
[Termination "ppchess2017 won by resignation"]

1. e4 {[%clk 0:03:00]} 1... e6 {[%clk 0:03:00.6]} 2. d4 {[%clk 0:03:01]} 2... d5
{[%clk 0:03:01.6]} 3. e5 {[%clk 0:02:57.4]} 3... c5 {[%clk 0:03:02.2]} 4. c3
{[%clk 0:02:56.8]} 4... Nc6 {[%clk 0:03:03.3]} 5. Nf3 {[%clk 0:02:57.5]} 5...
Bd7 {[%clk 0:03:04.1]} 6. Be2 {[%clk 0:02:57]} 6... Qb6 {[%clk 0:03:00.4]} 7.
O-O {[%clk 0:02:57.7]} 7... Nh6 {[%clk 0:02:57.9]} 8. Na3 {[%clk 0:02:52.9]}
8... cxd4 {[%clk 0:02:57.4]} 9. cxd4 {[%clk 0:02:48.5]} 9... Bxa3 {[%clk
0:02:56.5]} 10. bxa3 {[%clk 0:02:47.6]} 10... Nf5 {[%clk 0:02:53.7]} 11. Be3
{[%clk 0:02:48]} 11... O-O {[%clk 0:02:48.1]} 12. Bd3 {[%clk 0:02:48.4]} 12...
Nxe3 {[%clk 0:02:27.9]} 13. fxe3 {[%clk 0:02:45.9]} 13... f5 {[%clk 0:02:27.2]}
14. exf6 {[%clk 0:02:46.1]} 14... Rxf6 {[%clk 0:02:27.2]} 15. Bxh7+ {[%clk
0:02:47.3]} 15... Kxh7 {[%clk 0:02:26.2]} 16. Ng5+ {[%clk 0:02:48.5]} 16... Kg8
{[%clk 0:02:26.8]} 17. Qh5 {[%clk 0:02:46.4]} 17... Qd8 {[%clk 0:01:11.4]} 18.
Qh7+ {[%clk 0:02:39.1]} 18... Kf8 {[%clk 0:01:11.5]} 19. Qh8+ {[%clk 0:02:35.7]}
19... Ke7 {[%clk 0:01:08.9]} 20. Qxg7+ {[%clk 0:02:35.6]} 20... Kd6 {[%clk
0:01:10.4]} 21. Rxf6 {[%clk 0:02:34.7]} 21... Qg8 {[%clk 0:01:08.8]} 22. Nf7+
{[%clk 0:01:45.5]} 22... Kc7 {[%clk 0:01:06.8]} 23. Qg6 {[%clk 0:01:35.2]} 23...
Qxg6 {[%clk 0:00:55.4]} 24. Rxg6 {[%clk 0:01:35.3]} 24... Ne7 {[%clk 0:00:57.3]}
25. Rg7 {[%clk 0:01:34]} 25... Nf5 {[%clk 0:00:57.1]} 26. Rh7 {[%clk 0:01:34.7]}
26... Nxe3 {[%clk 0:00:33.1]} 27. Ne5 {[%clk 0:01:35.1]} 27... Rd8 {[%clk
0:00:34.7]} 28. Rc1+ {[%clk 0:01:35.2]} 28... Kd6 {[%clk 0:00:35]} 29. Nf7+
{[%clk 0:01:36.1]} 1-0

[Event "*** MasterClass Titled Tuesday Blitz"]
[Site "Chess.com"]
[Date "2017.12.05"]
[Round "3"]
[White "AndrBaryshpolets"]
[Black "timator"]
[Result "1-0"]
[WhiteElo "2478"]
[BlackElo "2349"]
[TimeControl "180+2"]
[EndTime "14:48:13 PST"]
[Termination "AndrBaryshpolets won on time"]

1. d4 {[%clk 0:03:01.9]} 1... Nf6 {[%clk 0:02:47.3]} 2. c4 {[%clk 0:03:02.2]}
2... e6 {[%clk 0:02:48.8]} 3. Nf3 {[%clk 0:03:02.8]} 3... b6 {[%clk 0:02:48.8]}
4. g3 {[%clk 0:03:03.7]} 4... Bb7 {[%clk 0:02:49.9]} 5. Bg2 {[%clk 0:03:04.7]}
5... Bb4+ {[%clk 0:02:51.1]} 6. Bd2 {[%clk 0:03:04.3]} 6... Be7 {[%clk 0:02:52]}
7. O-O {[%clk 0:03:03.8]} 7... O-O {[%clk 0:02:52.6]} 8. Nc3 {[%clk 0:03:05]}
8... d5 {[%clk 0:02:51.7]} 9. cxd5 {[%clk 0:03:02.6]} 9... exd5 {[%clk
0:02:51.3]} 10. Rc1 {[%clk 0:02:59.4]} 10... c5 {[%clk 0:02:52.5]} 11. Bg5
{[%clk 0:02:55.8]} 11... Nc6 {[%clk 0:02:46.9]} 12. dxc5 {[%clk 0:02:53.8]}
12... bxc5 {[%clk 0:02:46.9]} 13. Bxf6 {[%clk 0:02:51.5]} 13... Bxf6 {[%clk
0:02:47.7]} 14. Nxd5 {[%clk 0:02:52.8]} 14... Bxb2 {[%clk 0:02:03.2]} 15. Rb1
{[%clk 0:02:35.2]} 15... Nd4 {[%clk 0:02:04.1]} 16. Nf4 {[%clk 0:02:35.7]} 16...
Bxf3 {[%clk 0:02:00.5]} 17. exf3 {[%clk 0:02:35.7]} 17... Ba3 {[%clk 0:01:53.4]}
18. Qa4 {[%clk 0:02:28.1]} 18... Bb4 {[%clk 0:01:40]} 19. Rfd1 {[%clk
0:02:23.4]} 19... Qa5 {[%clk 0:01:38.2]} 20. Rxb4 {[%clk 0:02:19.9]} 20... Qxb4
{[%clk 0:01:29.1]} 21. Qxb4 {[%clk 0:02:20.7]} 21... cxb4 {[%clk 0:01:30.7]} 22.
Rxd4 {[%clk 0:02:21.9]} 22... Rac8 {[%clk 0:01:30]} 23. Rxb4 {[%clk 0:02:20.2]}
23... Rc1+ {[%clk 0:01:31]} 24. Bf1 {[%clk 0:02:21.6]} 24... Rd8 {[%clk
0:01:32.6]} 25. Kg2 {[%clk 0:02:21.6]} 25... Rc2 {[%clk 0:01:31]} 26. Bc4 {[%clk
0:02:14.6]} 26... h6 {[%clk 0:01:24.7]} 27. Bb3 {[%clk 0:02:14.5]} 27... Rcd2
{[%clk 0:01:15.2]} 28. h4 {[%clk 0:02:10.2]} 28... R8d7 {[%clk 0:01:10.6]} 29.
Rb5 {[%clk 0:02:07.8]} 29... R2d6 {[%clk 0:01:00]} 30. Rf5 {[%clk 0:02:06.3]}
30... g6 {[%clk 0:00:57.9]} 31. Ra5 {[%clk 0:02:03.2]} 31... Kg7 {[%clk
0:00:58.5]} 32. Nd5 {[%clk 0:02:02.3]} 32... Rc6 {[%clk 0:00:53.5]} 33. Ba4
{[%clk 0:01:59]} 1-0

[Event "*** MasterClass Titled Tuesday Blitz"]
[Site "Chess.com"]
[Date "2017.12.05"]
[Round "3"]
[White "Reshetkov"]
[Black "goingin33"]
[Result "0-1"]
[WhiteElo "2490"]
[BlackElo "2290"]
[TimeControl "180+2"]
[EndTime "14:48:18 PST"]
[Termination "goingin33 won by resignation"]

1. b3 {[%clk 0:03:01.9]} 1... e5 {[%clk 0:02:59.1]} 2. Bb2 {[%clk 0:03:02.2]}
2... Nc6 {[%clk 0:03:01]} 3. e3 {[%clk 0:03:02.3]} 3... Nf6 {[%clk 0:03:02.2]}
4. Bb5 {[%clk 0:03:02.8]} 4... e4 {[%clk 0:03:03]} 5. f3 {[%clk 0:03:02.4]} 5...
d5 {[%clk 0:02:58.5]} 6. Nc3 {[%clk 0:02:54.5]} 6... a6 {[%clk 0:02:48.4]} 7.
Bxc6+ {[%clk 0:02:51.4]} 7... bxc6 {[%clk 0:02:50.3]} 8. fxe4 {[%clk 0:02:51.8]}
8... dxe4 {[%clk 0:02:52.1]} 9. Nge2 {[%clk 0:02:52.5]} 9... Bd6 {[%clk
0:02:52.9]} 10. Nf4 {[%clk 0:02:46.3]} 10... Bg4 {[%clk 0:02:34.9]} 11. Nce2
{[%clk 0:02:35.5]} 11... Nh5 {[%clk 0:02:21.3]} 12. O-O {[%clk 0:02:33.5]} 12...
Nxf4 {[%clk 0:02:14.3]} 13. exf4 {[%clk 0:02:32.2]} 13... O-O {[%clk 0:02:14.7]}
14. h3 {[%clk 0:02:27.7]} 14... Bc5+ {[%clk 0:02:05.3]} 15. Kh1 {[%clk
0:02:27.2]} 15... Qh4 {[%clk 0:02:05.2]} 16. Qe1 {[%clk 0:02:14.9]} 16... Qh6
{[%clk 0:02:04.9]} 17. Kh2 {[%clk 0:01:27.3]} 17... Rad8 {[%clk 0:01:56.3]} 18.
Ng3 {[%clk 0:01:24.9]} 18... Rfe8 {[%clk 0:01:47.7]} 19. Nxe4 {[%clk 0:01:13.9]}
19... f5 {[%clk 0:01:41]} 20. Nxc5 {[%clk 0:01:14.4]} 20... Rxe1 {[%clk
0:01:42]} 21. Raxe1 {[%clk 0:01:15.9]} 21... Bxh3 {[%clk 0:01:32.8]} 22. d3
{[%clk 0:00:54.9]} 22... Bg4+ {[%clk 0:01:26.9]} 23. Kg1 {[%clk 0:00:51.8]}
23... Qg6 {[%clk 0:01:25.2]} 24. Kf2 {[%clk 0:00:43.9]} 24... Qd6 {[%clk
0:01:14]} 25. b4 {[%clk 0:00:40.7]} 25... Qxf4+ {[%clk 0:01:12.1]} 26. Kg1
{[%clk 0:00:41.4]} 26... Qxb4 {[%clk 0:01:10.4]} 27. Ne6 {[%clk 0:00:42.4]}
27... Re8 {[%clk 0:01:07.8]} 28. Ng5 {[%clk 0:00:30.7]} 28... Rxe1 {[%clk
0:01:07.2]} 29. Rxe1 {[%clk 0:00:32.2]} 29... Qxe1+ {[%clk 0:01:08.6]} 0-1

[Event "*** MasterClass Titled Tuesday Blitz"]
[Site "Chess.com"]
[Date "2017.12.05"]
[Round "3"]
[White "VladDobrov"]
[Black "Frolik67"]
[Result "1-0"]
[WhiteElo "2605"]
[BlackElo "2403"]
[TimeControl "180+2"]
[EndTime "14:48:19 PST"]
[Termination "VladDobrov won by resignation"]

1. d4 {[%clk 0:03:01.9]} 1... e6 {[%clk 0:03:00.2]} 2. c4 {[%clk 0:03:03]} 2...
d5 {[%clk 0:03:01.4]} 3. Nc3 {[%clk 0:02:47.1]} 3... c6 {[%clk 0:02:59.5]} 4. e3
{[%clk 0:02:42.9]} 4... Nf6 {[%clk 0:02:59.2]} 5. Nf3 {[%clk 0:02:44]} 5... Bd6
{[%clk 0:02:59.4]} 6. Bd3 {[%clk 0:02:42.5]} 6... dxc4 {[%clk 0:03:00.4]} 7.
Bxc4 {[%clk 0:02:43.5]} 7... b5 {[%clk 0:03:01.8]} 8. Bd3 {[%clk 0:02:44]} 8...
O-O {[%clk 0:02:58.4]} 9. e4 {[%clk 0:02:43.7]} 9... Bc7 {[%clk 0:02:55.1]} 10.
e5 {[%clk 0:02:44.1]} 10... Nd5 {[%clk 0:02:53.7]} 11. Bxh7+ {[%clk 0:02:41.5]}
11... Kh8 {[%clk 0:02:42.2]} 12. Ng5 {[%clk 0:02:31.6]} 12... g6 {[%clk
0:02:33.6]} 13. Qf3 {[%clk 0:02:31.7]} 13... f6 {[%clk 0:01:51.1]} 14. Bxg6
{[%clk 0:02:10]} 14... Qe7 {[%clk 0:01:44]} 15. Qh5+ {[%clk 0:02:08.4]} 15...
Kg8 {[%clk 0:01:42.6]} 16. Bh7+ {[%clk 0:02:08.2]} 16... Kh8 {[%clk 0:01:43.3]}
17. Nxd5 {[%clk 0:01:57.9]} 17... exd5 {[%clk 0:01:37.9]} 18. Bf5+ {[%clk
0:01:51.7]} 18... Kg8 {[%clk 0:01:38.2]} 19. Qg6+ {[%clk 0:01:41.8]} 19... Kh8
{[%clk 0:01:30.2]} 20. Qh6+ {[%clk 0:01:37.2]} 20... Kg8 {[%clk 0:01:29.3]} 21.
Bxc8 {[%clk 0:01:31.9]} 21... fxg5 {[%clk 0:01:22.8]} 22. Be6+ {[%clk
0:01:31.5]} 22... Rf7 {[%clk 0:01:22.2]} 23. Qg6+ {[%clk 0:01:27.4]} 23... Kf8
{[%clk 0:01:23.3]} 24. Bxg5 {[%clk 0:01:07]} 24... Qb4+ {[%clk 0:01:22.3]} 25.
Kf1 {[%clk 0:01:06.7]} 25... Rxf2+ {[%clk 0:01:22.9]} 26. Kxf2 {[%clk
0:01:07.5]} 26... Qxd4+ {[%clk 0:01:23.7]} 27. Kf3 {[%clk 0:00:59.3]} 27... Qe4+
{[%clk 0:01:06.9]} 28. Qxe4 {[%clk 0:00:59.7]} 28... dxe4+ {[%clk 0:01:08.8]}
29. Kxe4 {[%clk 0:01:00.9]} 29... Na6 {[%clk 0:01:10.7]} 30. Rhf1+ {[%clk
0:01:00.6]} 30... Ke8 {[%clk 0:01:11.9]} 31. b4 {[%clk 0:00:53.8]} 31... Nxb4
{[%clk 0:01:01.4]} 32. Rad1 {[%clk 0:00:54.2]} 1-0